bitfinex/quotes_SOLUSD_20250722
["timestamp","ask_amount","ask_price","bid_price","bid_amount"]
[1753169103411,1e-08,200.1,200.09,42.78468397]
[1753169103600,0.06,200.14,200.09,87.81124021]
[1753169103801,0.06,200.14,200.13,4.49327812]
[1753169104003,0.06,200.14,200.13,40.53327812]
[1753169104421,0.06,200.14,200.13,41.25327812]
[1753169104636,0.06,200.14,200.13,46.25003023]
[1753169104926,0.06,200.14,200.13,45.53003023]
[1753169105136,0.06,200.14,200.13,46.25003023]
[1753169105509,0.06,200.14,200.13,45.53003023]
[1753169107007,0.06,200.14,200.13,46.25003023]
[1753169107235,0.06,200.14,200.13,63.0347142]
[1753169108924,1e-08,200.16,200.15,42.78468397]
[1753169109132,0.66,200.26,200.16,16.78468397]
[1753169109309,0.06,200.29,200.16,16.78468397]
[1753169109310,0.66,200.25,200.18,21.27796209]
[1753169110018,0.66,200.25,200.18,21.95796209]
[1753169110430,0.66,200.25,200.18,26.95346613]
[1753169110616,0.66,200.26,200.18,22.46018801]
[1753169110935,0.66,200.26,200.18,62.99346613]
[1753169111436,4.99363633,200.26,200.18,62.99346613]
[1753169111737,0.66,200.24,200.18,45.52878216]
[1753169112317,4.99391067,200.25,200.18,45.52878216]
[1753169112318,0.66,200.27,200.18,67.48674425]
[1753169112548,0.66,200.27,200.18,79.97550436]
[1753169112727,0.06,200.29,200.26,4.49327812]
[1753169113044,0.06,200.29,200.2,4.49327812]
[1753169113045,0.06,200.29,200.28,4.49327812]
[1753169113432,0.72,200.29,200.28,4.49327812]
[1753169113759,0.06,200.29,200.28,4.49327812]
[1753169113927,0.06,200.29,200.28,45.5062879]
[1753169114123,0.06,200.29,200.28,46.1862879]
[1753169114330,0.06,200.29,200.28,62.97097187]
[1753169114825,0.1,200.31,200.3,42.78468397]
[1753169115025,0.1,200.31,200.3,87.79124021]
[1753169115330,0.1,200.31,200.3,86.65380505]
[1753169115528,6.2556,200.42,200.34,26.0]
[1753169115719,5.64927652,200.43,200.41,7.16912108]
[1753169115920,0.66,200.42,200.41,7.16912108]
[1753169116241,0.66,200.42,200.4,7.16912108]
[1753169116833,0.66,200.41,200.39,43.18912108]
[1753169117144,0.66,200.4,200.37,36.02]
[1753169117352,4.98852638,200.46,200.39,7.16912108]
[1753169117639,4.98852638,200.46,200.43,7.16912108]
[1753169117851,0.66,200.45,200.42,36.0]
[1753169118038,0.66,200.45,200.43,7.16912108]
[1753169118215,18.39558397,200.52,200.44,43.16912108]
[1753169118216,0.66,200.48,200.44,43.16912108]
[1753169118421,5.64807674,200.48,200.46,7.16912108]
[1753169118628,0.66,200.5,200.44,36.0]
[1753169118922,41.37932108,200.52,200.46,36.0]
[1753169118923,34.2102,200.52,200.46,36.0]
[1753169119122,0.66,200.51,200.46,36.0]
[1753169119428,0.66,200.5,200.46,36.0]
[1753169120254,5.64758629,200.5,200.46,36.0]
[1753169120426,5.64758629,200.5,200.46,43.16912108]
[1753169120627,4.98758629,200.5,200.46,43.16912108]
[1753169121133,5.64758629,200.5,200.46,43.16912108]
[1753169121432,0.66,200.5,200.46,43.16912108]
[1753169121630,0.66,200.5,200.47,7.16912108]
[1753169121829,0.66,200.49,200.47,7.16912108]
[1753169122045,0.66,200.48,200.46,36.0]
[1753169122223,0.66,200.5,200.46,36.0]
[1753169122429,7.82912108,200.49,200.43,7.16912108]
[1753169122629,0.66,200.48,200.44,43.16912108]
[1753169122925,0.66,200.5,200.46,7.16912108]
[1753169123144,0.66,200.5,200.44,36.68]
[1753169123443,0.66,200.5,200.45,7.16912108]
[1753169123629,0.66,200.5,200.45,43.14912108]
[1753169123829,0.66,200.49,200.45,43.14912108]
[1753169124042,0.66,200.49,200.46,7.16912108]
[1753169124242,5.64750663,200.51,200.48,7.16912108]
[1753169124431,33.16912108,200.49,200.41,0.72214116]
[1753169124757,7.16912108,200.45,200.41,0.72214116]
[1753169125048,26.66,200.48,200.41,7.89126224]
[1753169125238,26.66,200.48,200.43,7.16912108]
[1753169125429,0.66,200.5,200.45,7.16912108]
[1753169125626,4.98750663,200.51,200.43,0.68]
[1753169125627,12.15662771,200.51,200.43,0.68]
[1753169125846,0.66,200.49,200.45,7.16912108]
[1753169126154,0.66,200.49,200.43,0.68]
[1753169126446,0.66,200.48,200.44,7.16912108]
[1753169126626,4.98766653,200.5,200.45,7.16912108]
[1753169126825,0.66,200.49,200.44,0.68]
[1753169127051,4.98766653,200.5,200.45,7.16912108]
[1753169127052,0.66,200.48,200.45,7.16912108]
[1753169127351,0.66,200.47,200.43,43.14912108]
[1753169128031,0.66,200.46,200.43,43.14912108]
[1753169128229,5.64859252,200.46,200.43,35.98]
[1753169128428,0.66,200.46,200.43,43.14912108]
[1753169128835,5.64856522,200.46,200.43,43.14912108]
[1753169129230,0.66,200.49,200.44,7.16912108]
[1753169129444,12.15665225,200.5,200.44,7.16912108]
[1753169129647,0.66,200.48,200.42,35.98]
[1753169129959,0.66,200.49,200.45,7.16912108]
[1753169130151,0.66,200.48,200.45,7.16912108]
[1753169130535,5.64813405,200.48,200.46,1.433356]
[1753169131655,0.66,200.48,200.46,1.433356]
[1753169131855,0.66,200.47,200.46,1.433356]
[1753169132361,5.64778068,200.49,200.46,1.433356]
[1753169133240,0.66,200.48,200.46,1.433356]
[1753169133439,4.98778068,200.49,200.46,1.433356]
[1753169133635,5.64778068,200.49,200.46,1.433356]
[1753169134358,0.66,200.48,200.46,1.433356]
[1753169134551,0.66,200.47,200.46,1.433356]
[1753169134748,33.82912108,200.47,200.46,1.433356]
[1753169135149,38.81739862,200.47,200.46,1.433356]
[1753169136441,26.0,200.43,200.35,0.68]
[1753169136642,7.16912108,200.42,200.36,7.16912108]
[1753169136847,7.82912108,200.42,200.35,7.84912108]
[1753169137049,33.16912108,200.41,200.35,7.16912108]
[1753169137240,33.16912108,200.41,200.34,35.96]
[1753169137241,12.81914104,200.4,200.34,43.12912108]
[1753169137957,12.81914104,200.4,200.33,7.84912108]
[1753169138159,7.16912108,200.38,200.32,7.77186035]
[1753169138359,7.16912108,200.38,200.32,0.60273927]
[1753169138561,33.16912108,200.35,200.32,0.60273927]
[1753169138741,0.66,200.35,200.32,0.60273927]
[1753169139246,5.65143883,200.35,200.32,0.60273927]
[1753169139557,7.82912108,200.38,200.32,8.47186035]
[1753169139762,4.99081209,200.37,200.33,7.16912108]
[1753169139964,0.66,200.38,200.33,7.16912108]
[1753169140138,67.72912108,200.45,200.37,7.16912108]
[1753169140343,67.72912108,200.45,200.41,7.16912108]
[1753169140344,35.96,200.44,200.41,7.16912108]
[1753169140558,35.96,200.44,200.42,7.16912108]
[1753169140863,5.64827754,200.47,200.38,0.7]
[1753169141038,12.81739862,200.47,200.41,7.16912108]
[1753169141234,12.81739862,200.47,200.4,7.16912108]
[1753169141746,12.81739862,200.47,200.41,7.16912108]
[1753169142455,5.64827754,200.47,200.42,7.16912108]
[1753169142648,4.98827754,200.47,200.42,7.16912108]
[1753169142962,5.64827754,200.47,200.42,7.16912108]
[1753169143859,5.64827754,200.47,200.42,7.86912108]
[1753169144051,0.66,200.46,200.42,7.16912108]
[1753169144361,0.66,200.45,200.41,7.16912108]
[1753169144766,12.15739862,200.47,200.41,7.16912108]
[1753169145755,4.98827754,200.47,200.41,7.16912108]
[1753169146654,12.15739862,200.47,200.41,7.16912108]
[1753169146949,4.98827754,200.47,200.41,7.16912108]
[1753169148164,0.66,200.46,200.38,5.69048546]
[1753169148560,0.66,200.46,200.41,7.16912108]
[1753169148747,74.17717092,200.48,200.42,7.16912108]
[1753169149058,67.00804984,200.48,200.42,7.16912108]
[1753169149263,67.00804984,200.48,200.41,0.7]
[1753169149264,62.02,200.48,200.43,7.16912108]
[1753169149462,0.06,200.48,200.44,7.86912108]
[1753169149666,0.06,200.48,200.45,0.7]
[1753169150043,0.06,200.48,200.44,7.16912108]
[1753169150343,0.06,200.48,200.44,12.85810033]
[1753169150773,0.06,200.48,200.44,7.86912108]
[1753169151275,0.06,200.48,200.45,7.86912108]
[1753169151668,0.06,200.48,200.46,0.7]
[1753169152958,0.06,200.48,200.46,7.16912108]
[1753169153166,0.06,200.48,200.47,0.7]
[1753169154371,0.06,200.48,200.45,10.16548167]
[1753169154673,0.06,200.48,200.46,0.7]
[1753169154867,0.06,200.48,200.46,5.17676464]
[1753169155064,0.06,200.48,200.47,0.7]
[1753169155450,0.06,200.48,200.45,4.98871703]
[1753169155650,0.06,200.48,200.43,4.47676464]
[1753169155873,24.34521293,200.47,200.35,10.0]
[1753169156071,24.34521293,200.47,200.13,24.83745335]
[1753169156072,24.70633859,200.33,200.15,35.9]
[1753169156281,10.0,200.47,200.15,35.9]
[1753169156282,24.70120126,200.38,200.25,3.08e-06]
[1753169156455,24.62499513,200.36,200.19,31.2123152]
[1753169156654,24.44099026,200.36,200.3,4.47676464]
[1753169156877,24.57579515,200.29,200.19,2.43181278]
[1753169157181,60.75610768,200.29,200.28,8.95352928]
[1753169157875,60.75610768,200.29,200.28,4.47676464]
[1753169158078,24.81610768,200.29,200.28,8.95352928]
[1753169158283,60.75610768,200.29,200.28,8.95352928]
[1753169158863,60.33664119,200.29,200.21,5.7e-07]
[1753169159065,24.56988717,200.43,200.28,5.7e-07]
[1753169159277,24.45539228,200.41,200.3,0.00111978]
[1753169159460,24.32844148,200.29,200.15,157.19030757]
[1753169159655,4.47564486,200.3,200.15,157.19030757]
[1753169159656,24.77634225,200.27,200.21,2.59847094]
[1753169159969,24.77634225,200.27,200.22,0.32]
[1753169160175,24.77634225,200.27,200.22,17.10468397]
[1753169160477,24.77634225,200.27,200.26,8.95352928]
[1753169160676,24.77634225,200.27,200.26,4.47676464]
[1753169160858,24.77634225,200.27,200.26,8.95352928]
[1753169161065,24.77634225,200.27,200.26,4.47676464]
[1753169161267,24.77634225,200.27,200.26,8.95352928]
[1753169162084,24.77634225,200.27,200.15,2.60331287]
[1753169162261,24.77634225,200.27,200.26,8.95352928]
[1753169162464,24.77634225,200.27,200.26,4.47676577]
[1753169162866,60.71634225,200.27,200.26,4.47676577]
[1753169163059,60.71634225,200.27,200.26,4.47676464]
[1753169163265,4.47564486,200.3,200.26,4.47676464]
[1753169163266,24.32844148,200.29,200.26,4.47676464]
[1753169163480,24.77634225,200.27,200.19,163.48468397]
[1753169163665,24.77634225,200.27,200.19,16.78468397]
[1753169164075,24.77634225,200.27,200.22,16.78468726]
[1753169164390,24.77634225,200.27,200.18,149.30338835]
[1753169164768,24.77634225,200.27,200.26,4.47676464]
[1753169165085,24.77634225,200.27,200.2,5.7e-07]
[1753169165694,24.77634225,200.27,200.26,5.7e-07]
[1753169165890,24.77634225,200.27,200.17,5.7e-07]
[1753169166066,24.77634225,200.27,200.26,16.78468397]
[1753169166266,24.77634225,200.27,200.26,4.47676464]
[1753169166468,24.50869075,200.25,200.2,4.47676464]
[1753169166688,4.47676464,200.26,200.17,5.7e-07]
[1753169166689,24.87693804,200.23,200.17,5.7e-07]
[1753169166867,24.87693804,200.23,200.22,4.47676464]
[1753169167268,24.87693804,200.23,200.22,5.7e-07]
[1753169167778,24.87693804,200.23,200.22,30.47676464]
[1753169167988,24.87693804,200.23,200.22,4.47676464]
[1753169168490,27.4769712,200.23,200.19,4.47676464]
[1753169168679,27.4769712,200.23,200.21,4.47676464]
[1753169169266,60.31499736,200.22,200.21,4.47676464]
[1753169169680,24.39499736,200.22,200.21,4.47676464]
[1753169169974,60.31499736,200.22,200.21,4.47676464]
[1753169171070,0.06,200.47,200.31,1.53282678]
[1753169171297,24.45450061,200.52,200.2,4.58e-06]
[1753169171472,24.45450061,200.52,200.5,2.8e-07]
[1753169171473,28.88401856,200.51,200.5,2.8e-07]
[1753169171671,28.88401856,200.51,200.15,2.55397375]
[1753169171672,24.70945895,200.5,200.15,2.55397375]
[1753169171880,24.70945895,200.5,200.13,31.90211673]
[1753169172189,24.70945895,200.5,200.1,36.38]
[1753169172486,24.70945895,200.5,200.4,0.00111949]
[1753169172687,24.70945895,200.5,200.49,4.47676464]
[1753169172892,4.47564486,200.51,200.49,4.47676464]
[1753169173082,36.38,200.5,200.46,4.47676464]
[1753169173276,53.16468397,200.5,200.49,26.0]
[1753169173480,36.38,200.5,200.49,26.0]
[1753169173668,36.38,200.5,200.46,7.15803076]
[1753169173669,53.16468397,200.5,200.46,7.15803076]
[1753169173871,53.16468397,200.5,200.49,26.0]
[1753169174069,60.32271473,200.5,200.49,26.0]
[1753169174291,53.16468397,200.5,200.47,26.0]
[1753169174496,23.94271473,200.48,200.47,26.0]
[1753169174904,16.78468397,200.47,200.45,26.0]
[1753169175194,36.36,200.46,200.45,26.0]
[1753169175398,36.36,200.46,200.44,26.0]
[1753169175399,43.51803076,200.46,200.44,26.0]
[1753169175572,36.36,200.45,200.44,26.0]
[1753169175771,43.51803076,200.45,200.44,26.0]
[1753169176001,43.51803076,200.45,200.41,26.0]
[1753169176177,7.15803076,200.42,200.35,14.954761]
[1753169176371,7.15803076,200.36,200.28,4.06614019]
[1753169176694,36.4,200.35,200.31,26.0]
[1753169176875,36.4,200.35,200.34,7.15803076]
[1753169177075,36.4,200.35,200.34,10.24637922]
[1753169177806,16.78468397,200.4,200.37,26.0]
[1753169178017,16.78468397,200.4,200.39,14.31606152]
[1753169178293,53.18468397,200.4,200.39,17.40440998]
[1753169178493,35.9,200.48,200.42,26.0]
[1753169178696,72.32,200.47,200.43,29.08834846]
[1753169178987,0.75,200.53,200.49,26.0]
[1753169179191,0.75,200.53,200.52,7.15803076]
[1753169179498,35.96,200.53,200.52,10.24637922]
[1753169179671,72.36,200.53,200.52,3.08834846]
[1753169180175,35.96,200.53,200.52,10.24637922]
[1753169180384,35.96,200.53,200.52,3.08834846]
[1753169180695,72.36,200.53,200.52,3.08834846]
[1753169180901,72.36,200.53,200.52,5.58473196]
[1753169182596,35.96,200.53,200.52,5.58473196]
[1753169182802,72.34,200.53,200.52,5.58473196]
[1753169182996,35.96,200.53,200.52,5.58473196]
[1753169183305,72.34,200.53,200.52,5.58473196]
[1753169183991,35.96,200.53,200.52,5.58473196]
[1753169184181,72.32,200.53,200.52,5.58473196]
[1753169184597,72.32,200.53,200.52,5.56474467]
[1753169185102,72.3,200.53,200.52,5.56474467]
[1753169186918,72.28,200.53,200.52,5.56474467]
[1753169187312,72.28,200.53,200.52,31.56337932]
[1753169187794,35.96,200.53,200.52,31.56337932]
[1753169188110,72.26,200.53,200.52,31.56337932]
[1753169188313,35.96,200.53,200.52,31.56337932]
[1753169188520,72.24,200.53,200.52,31.56337932]
[1753169188690,35.96,200.53,200.52,31.56337932]
[1753169188890,83.59089394,200.53,200.52,26.0]
[1753169190306,47.31089394,200.53,200.52,26.0]
[1753169190515,83.57089394,200.53,200.52,26.0]
[1753169190902,72.89,200.53,200.52,26.0]
[1753169191102,83.55089394,200.53,200.52,26.0]
[1753169191300,83.55089394,200.53,200.5,26.0]
[1753169191539,36.24,200.52,200.51,26.0]
[1753169191809,47.59089394,200.52,200.51,26.0]
[1753169192112,47.59089394,200.52,200.49,26.0]
[1753169192321,0.69,200.51,200.49,25.00251865]
[1753169192489,35.96,200.53,200.49,25.00251865]
[1753169192689,36.24,200.52,200.49,25.00251865]
[1753169192907,0.69,200.51,200.49,25.00251865]
[1753169193112,36.24,200.5,200.49,25.00251865]
[1753169194410,36.24,200.5,200.39,1.5719]
[1753169194630,36.24,200.5,200.49,26.0]
[1753169194910,36.89,200.5,200.49,2.43808523]
[1753169195087,35.88,200.51,200.49,26.0]
[1753169195289,36.2,200.5,200.49,26.0]
[1753169195512,36.2,200.5,200.49,2.4762014]
[1753169195815,36.2,200.5,200.42,26.0]
[1753169196210,36.2,200.5,200.39,1.5719]
[1753169196522,36.2,200.5,200.44,0.03]
[1753169196814,36.89,200.5,200.44,0.03]
[1753169197119,0.69,200.49,200.48,26.0]
[1753169197804,36.95,200.49,200.48,26.0]
[1753169197999,36.95,200.49,200.47,2.53326017]
[1753169198199,53.04468397,200.49,200.48,26.0]
[1753169198617,16.78468397,200.48,200.44,10.69089394]
[1753169198814,36.89,200.47,200.44,10.69089394]
[1753169199116,36.24,200.47,200.46,26.0]
[1753169199420,43.68097791,200.5,200.46,36.66089394]
[1753169199421,6.2354,200.5,200.46,36.66089394]
[1753169199621,36.24,200.49,200.47,10.66089394]
[1753169199824,36.24,200.49,200.47,36.66089394]
[1753169200022,6.2354,200.5,200.49,26.0]
[1753169200217,43.1254,200.5,200.49,29.082]
[1753169200609,6.8854,200.5,200.49,3.082]
[1753169200807,43.1254,200.5,200.49,3.082]
[1753169201917,43.1254,200.5,200.49,29.082]
[1753169202124,43.1254,200.5,200.49,3.082]
[1753169202623,42.4754,200.5,200.49,3.082]
[1753169202921,43.1254,200.5,200.49,3.082]
[1753169203427,43.1254,200.5,200.49,29.082]
[1753169203801,6.8854,200.5,200.49,29.082]
[1753169204509,43.0654,200.5,200.49,29.082]
[1753169204699,35.88,200.51,200.5,26.0]
[1753169204897,35.88,200.51,200.5,36.24275438]
[1753169204898,72.06,200.51,200.5,36.24275438]
[1753169205814,72.06,200.51,200.5,3.08353817]
[1753169206202,72.06,200.51,200.5,29.08353817]
[1753169206717,72.71,200.51,200.5,29.08353817]
[1753169208417,72.02,200.51,200.5,3.08353817]
[1753169208610,72.67,200.51,200.5,3.08353817]
[1753169210309,72.02,200.51,200.5,3.08353817]
[1753169210721,35.88,200.51,200.5,10.24275438]
[1753169210928,71.98,200.51,200.5,10.24275438]
[1753169211239,71.98,200.51,200.5,3.08353817]
[1753169211415,72.63,200.51,200.5,3.08353817]
[1753169211614,71.98,200.51,200.5,3.08353817]
[1753169211821,35.88,200.51,200.5,10.24275438]
[1753169212020,71.96,200.51,200.5,10.24275438]
[1753169212337,71.96,200.51,200.5,9.24527303]
[1753169213620,35.88,200.51,200.5,9.24527303]
[1753169213819,71.94,200.51,200.5,9.24527303]
[1753169215409,68.24328031,200.51,200.5,9.24527303]
[1753169215611,0.06,200.54,200.53,26.0]
[1753169215828,0.06,200.56,200.54,3.2463]
[1753169216034,0.06,200.56,200.55,7.15921621]
[1753169216327,36.14,200.56,200.55,7.15921621]
[1753169216625,27.8482214,200.56,200.55,7.15921621]
[1753169217130,19.46460405,200.56,200.55,7.15921621]
[1753169217313,35.94,200.59,200.55,7.15921621]
[1753169217508,35.94,200.59,200.58,26.0]
[1753169217708,72.06,200.59,200.58,33.15921621]
[1753169218330,35.82,200.59,200.58,40.31843242]
[1753169218731,35.82,200.59,200.58,33.15921621]
[1753169218920,71.94,200.59,200.58,33.15921621]
[1753169219229,0.06,200.6,200.58,33.15921621]
[1753169219429,36.51,200.7,200.62,26.0]
[1753169219743,36.75,200.69,200.67,26.0]
[1753169219906,16.78468397,200.66,200.58,7.15921621]
[1753169220106,44.02921621,200.65,200.58,7.15921621]
[1753169220330,7.80921621,200.64,200.58,7.15921621]
[1753169220629,36.22,200.65,200.52,14.31843221]
[1753169220630,0.65,200.63,200.62,26.0]
[1753169220840,9.7963,200.69,200.62,33.15921621]
[1753169220841,6.558,200.69,200.62,33.15921621]
[1753169221131,6.558,200.69,200.68,7.15921621]
[1753169221320,36.38,200.69,200.68,7.15921621]
[1753169221828,36.38,200.69,200.57,3.109]
[1753169221829,37.03,200.69,200.57,3.109]
[1753169222028,10.65,200.68,200.66,26.0]
[1753169222230,0.65,200.68,200.67,7.15921621]
[1753169222529,36.36,200.68,200.67,7.15921621]
[1753169223132,0.65,200.68,200.67,7.15921621]
[1753169223323,36.38,200.68,200.67,7.15921621]
[1753169223529,35.86,200.7,200.69,26.0]
[1753169223708,35.86,200.7,200.69,33.15921621]
[1753169224122,72.24,200.7,200.69,33.15921621]
[1753169224607,72.89,200.7,200.69,26.0]
[1753169224930,35.86,200.7,200.69,33.15921621]
[1753169225124,35.86,200.7,200.69,7.15921621]
[1753169225430,72.3,200.7,200.69,7.15921621]
[1753169225613,35.86,200.7,200.69,7.15921621]
[1753169225822,72.3,200.7,200.69,7.15921621]
[1753169226220,35.86,200.7,200.69,7.15921621]
[1753169226533,72.28,200.7,200.69,7.15921621]
[1753169227211,0.65,200.81,200.69,26.0]
[1753169227417,0.65,200.81,200.8,33.15921621]
[1753169227617,43.2551,200.81,200.7,26.0]
[1753169227940,43.2551,200.81,200.8,7.15921621]
[1753169228133,11.44983081,200.82,200.8,7.15921621]
[1753169228314,11.44983081,200.82,200.76,7.15921621]
[1753169228315,3.284,200.8,200.7,26.72]
[1753169228645,3.284,200.8,200.79,26.0]
[1753169228947,10.0,200.77,200.71,0.15]
[1753169229245,16.78468397,200.81,200.67,7.06098167]
[1753169229543,16.78468397,200.81,200.69,7.159216]
[1753169229544,7.15921621,200.73,200.69,7.159216]
[1753169229740,10.0,200.76,200.69,7.159216]
[1753169229741,0.06,200.7,200.69,7.159216]
[1753169230122,0.06,200.7,200.69,7.15921621]
[1753169231517,0.06,200.7,200.69,26.0]
[1753169231718,0.74,200.7,200.69,33.15921621]
[1753169232113,0.74,200.7,200.65,26.0]
[1753169232345,0.74,200.7,200.67,26.0]
[1753169232346,37.2,200.69,200.67,26.0]
[1753169232650,0.06,200.7,200.68,7.87921621]
[1753169232815,0.06,200.7,200.69,7.15921621]
[1753169233015,37.24,200.7,200.69,7.15921621]
[1753169233949,37.24,200.7,200.69,7.87921621]
[1753169234150,37.92,200.7,200.67,26.0]
[1753169234350,14.15661621,200.69,200.59,0.03]
[1753169234552,7.15921621,200.67,200.6,7.15921621]
[1753169234845,10.0,200.68,200.61,7.15921621]
[1753169234846,38.22,200.66,200.61,7.15921621]
[1753169235152,0.68,200.65,200.62,7.15921621]
[1753169235322,0.68,200.64,200.62,7.15921621]
[1753169235526,47.54,200.66,200.61,7.15921621]
[1753169235946,47.54,200.66,200.64,26.0]
[1753169236145,0.68,200.65,200.64,26.0]
[1753169236725,0.68,200.65,200.61,7.15921621]
[1753169237042,47.54,200.66,200.63,7.15921621]
[1753169237043,0.68,200.64,200.63,7.15921621]
[1753169237250,37.54,200.66,200.65,26.0]
[1753169237723,37.54,200.66,200.64,7.15921621]
[1753169237925,0.68,200.65,200.64,7.15921621]
[1753169238141,0.68,200.65,200.59,26.03]
[1753169238438,0.68,200.65,200.64,7.15921621]
[1753169238629,38.14,200.65,200.64,7.15921621]
[1753169238940,0.68,200.65,200.64,7.15921621]
[1753169239146,38.12,200.65,200.64,7.15921621]
[1753169240630,37.44,200.65,200.64,7.15921621]
[1753169240947,0.06,200.7,200.67,26.0]
[1753169241255,38.06,200.69,200.66,26.0]
[1753169241447,37.38,200.69,200.68,7.15921621]
[1753169242132,38.06,200.69,200.68,7.15921621]
[1753169243228,38.06,200.69,200.59,26.75]
[1753169243434,0.68,200.68,200.61,3.07]
[1753169243828,0.68,200.68,200.67,7.15921621]
[1753169244256,0.06,200.7,200.69,26.0]
[1753169244432,10.0,200.68,200.67,7.15921621]
[1753169244833,10.68,200.68,200.61,3.07]
[1753169245034,10.68,200.68,200.67,7.15921621]
[1753169246040,10.0,200.68,200.67,7.15921621]
[1753169246434,50.5914,200.7,200.69,26.0]
[1753169246633,10.0,200.67,200.61,3.07]
[1753169246937,37.38,200.66,200.61,3.07]
[1753169247134,37.38,200.66,200.65,7.15921621]
[1753169247539,38.06,200.66,200.61,3.07]
[1753169247748,38.06,200.66,200.65,7.15921621]
[1753169247954,38.06,200.66,200.61,3.07]
[1753169248251,37.38,200.66,200.65,7.15921621]
[1753169248729,38.06,200.66,200.65,7.15921621]
[1753169250329,16.5951,200.64,200.63,26.0]
[1753169250533,17.2751,200.64,200.63,26.0]
[1753169251051,17.2751,200.64,200.61,7.15921621]
[1753169251226,37.98,200.63,200.61,7.15921621]
[1753169251457,0.68,200.62,200.59,0.03]
[1753169251669,10.68,200.62,200.6,7.15921621]
[1753169251917,0.68,200.61,200.59,7.18921621]
[1753169252058,37.96,200.6,200.59,0.03]
[1753169252354,47.96,200.6,200.53,0.15]
[1753169252545,0.68,200.59,200.57,7.15921621]
[1753169252731,0.68,200.59,200.53,0.15]
[1753169252732,16.78468397,200.58,200.53,0.15]
[1753169252933,10.0,200.56,200.53,0.15]
[1753169253128,10.0,200.56,200.5,0.03]
[1753169253129,16.78468397,200.53,200.5,0.03]
[1753169253328,33.94390018,200.51,200.5,0.03]
[1753169253735,64.78468397,200.51,200.5,26.03]
[1753169254040,64.78468397,200.51,200.5,0.03]
[1753169254238,64.78468397,200.51,200.5,26.03]
[1753169254452,64.78468397,200.51,200.5,0.03]
[1753169255152,71.94390018,200.51,200.5,0.03]
[1753169255556,72.56731048,200.51,200.5,0.03]
[1753169256126,71.94390018,200.51,200.5,0.03]
[1753169256434,72.56731048,200.51,200.5,0.03]
[1753169256628,64.78468397,200.51,200.5,0.03]
[1753169256845,71.92390018,200.51,200.5,0.03]
[1753169258448,64.76468397,200.51,200.5,0.03]
[1753169258639,71.92390018,200.51,200.5,0.03]
[1753169259437,64.76468397,200.51,200.5,0.03]
[1753169259638,71.92390018,200.51,200.5,0.03]
[1753169260041,47.98,200.51,200.5,0.03]
[1753169260243,47.3,200.51,200.5,0.03]
[1753169260645,47.97,200.51,200.5,26.03]
[1753169261139,47.97,200.51,200.5,0.03]
[1753169261460,55.12921621,200.51,200.5,0.03]
[1753169261756,47.16501406,200.51,200.5,26.03]
[1753169261965,41.00841406,200.51,200.5,0.03]
[1753169262258,15.94016294,200.51,200.5,0.03]
[1753169262763,15.94016294,200.51,200.5,26.03]
[1753169263562,16.61016294,200.51,200.5,26.03]
[1753169264062,15.94016294,200.51,200.5,26.03]
[1753169264362,40.55406312,200.51,200.5,0.03]
[1753169265940,33.39484691,200.51,200.5,0.03]
[1753169266365,16.61016294,200.51,200.5,0.03]
[1753169266592,35.84,200.52,200.5,7.18921621]
[1753169266859,6.4504,200.56,200.54,26.0]
[1753169267065,37.12,200.55,200.53,7.15921621]
[1753169267441,37.12,200.55,200.54,26.0]
[1753169267851,11.10155168,200.55,200.54,33.15921621]
[1753169268044,3.425,200.59,200.54,33.85921621]
[1753169268244,37.1,200.58,200.57,26.0]